Workbook

Sheet Interface

Sheet Level_1 (hidden)
Q1: Flat rate
Q2: Time-of-use
A3: Hours | B3: Lighting | C3: daily usage | D3: HVAC | F3: Lifts | H3: Computer Loads | J3: Other Loads | L3: Motor Loads | N3: Total Demand | O3: Tariff | Q3: Demand
B5: 50 | C5: kWh | D5: 50 | F5: 20 | H5: 75 | J5: 50 | L5: 44 | O5: Demand | R5: Charges
A6: 0000-0100 | B6: 75 | C6: =B$5*B6/100 -> 37.5 | D6: 10 | E6: =D$5*D6/100*0.85 -> 4.25 | F6: 0 | G6: =F$5*F6/100*0.85 -> 0 | H6: 0 | I6: =H$5*H6/100*0.85 -> 0 | J6: 10 | K6: =J$5*J6/100*0.85 -> 4.25 | L6: 0 | M6: =L$5*L6/100 -> 0 | N6: =C6+E6+G6+I6+K6+M6 -> 46 | O6: =IF(O$5="Flat rate",0.21, IF(O$5="Time-of-use", Q6, IF(O$5="Demand",P6))) -> 0.21 | P6: =IF(N6=MAX(N$6:N$29),9.21,0.21) -> 0.21 | Q6: =IF(O$5="Time-of-use", 0.21,0) -> 0 | R6: =O6*N6 -> 9.66 | S6: Total | T6: =N30 -> 2944.975 | V6: kWh
A7: 0100-0200 | B7: 75 | C7: =B$5*B7/100 -> 37.5 | D7: 10 | E7: =D$5*D7/100*0.85 -> 4.25 | F7: 0 | G7: =F$5*F7/100*0.85 -> 0 | H7: 0 | I7: =H$5*H7/100*0.85 -> 0 | J7: 10 | K7: =J$5*J7/100*0.85 -> 4.25 | L7: 0 | M7: =L$5*L7/100 -> 0 | N7: =C7+E7+G7+I7+K7+M7 -> 46 | O7: =IF(O$5="Flat rate",0.21, IF(O$5="Time-of-use", Q7, IF(O$5="Demand",P7))) -> 0.21 | P7: =IF(N7=MAX(N$6:N$29),9.21,0.21) -> 0.21 | Q7: =IF(O$5="Time-of-use", 0.21,0) -> 0 | R7: =O7*N7 -> 9.66 | S7: Demand
A8: 0200-0300 | B8: 75 | C8: 37.5 | D8: 10 | E8: 4.25 | F8: 0 | G8: 0 | H8: 0 | I8: 0 | J8: 10 | K8: 4.25 | L8: 0 | M8: 0 | N8: 46 | O8: 0.21 | P8: 0.21 | Q8: 0 | R8: 9.66
A9: 0300-0400 | B9: 75 | C9: 37.5 | D9: 10 | E9: 4.25 | F9: 0 | G9: 0 | H9: 0 | I9: 0 | J9: 10 | K9: 4.25 | L9: 10 | M9: 4.4 | N9: 50.4 | O9: 0.21 | P9: 0.21 | Q9: 0 | R9: 10.584 | S9: Total | T9: =R30 -> 2596.19475 | V9: AUD
A10: 0400-0500 | B10: 75 | C10: 37.5 | D10: 10 | E10: 4.25 | F10: 0 | G10: 0 | H10: 0 | I10: 0 | J10: 10 | K10: 4.25 | L10: 25 | M10: 11 | N10: 57 | O10: 0.21 | P10: 0.21 | Q10: 0 | R10: 11.97 | S10: Cost
A11: 0500-0600 | B11: 75 | C11: 37.5 | D11: 10 | E11: 4.25 | F11: 0 | G11: 0 | H11: 0 | I11: 0 | J11: 10 | K11: 4.25 | L11: 30 | M11: 13.2 | N11: 59.2 | O11: 0.21 | P11: 0.21 | Q11: 0 | R11: 12.432
A12: 0600-0700 | B12: 75 | C12: 37.5 | D12: 10 | E12: 4.25 | F12: 0 | G12: 0 | H12: 0 | I12: 0 | J12: 10 | K12: 4.25 | L12: 50 | M12: 22 | N12: 68 | O12: 0.21 | P12: 0.21 | Q12: 0 | R12: 14.28
A13: 0700-0800 | B13: 50 | C13: 25 | D13: 20 | E13: 8.5 | F13: 100 | G13: 17 | H13: 20 | I13: 12.75 | J13: 100 | K13: 42.5 | L13: 100 | M13: 44 | N13: 149.75 | O13: 0.21 | P13: 0.21 | Q13: 0 | R13: 31.4475
A14: 0800-0900 | B14: 20 | C14: 10 | D14: 30 | E14: 12.75 | F14: 100 | G14: 17 | H14: 50 | I14: 31.875 | J14: 100 | K14: 42.5 | L14: 100 | M14: 44 | N14: 158.125 | O14: 0.21 | P14: 0.21 | Q14: 0 | R14: 33.20625
A15: 0900-1000 | B15: 10 | C15: 5 | D15: 100 | E15: 42.5 | F15: 100 | G15: 17 | H15: 100 | I15: 63.75 | J15: 100 | K15: 42.5 | L15: 100 | M15: 44 | N15: 214.75 | O15: 0.21 | P15: 0.21 | Q15: 0 | R15: 45.0975
A16: 1000-1100 | B16: 10 | C16: 5 | D16: 100 | E16: 42.5 | F16: 100 | G16: 17 | H16: 100 | I16: 63.75 | J16: 100 | K16: 42.5 | L16: 100 | M16: 44 | N16: 214.75 | O16: 0.21 | P16: 0.21 | Q16: 0 | R16: 45.0975
A17: 1100-1200 | B17: 10 | C17: 5 | D17: 100 | E17: 42.5 | F17: 100 | G17: 17 | H17: 100 | I17: 63.75 | J17: 100 | K17: 42.5 | L17: 100 | M17: 44 | N17: 214.75 | O17: 0.21 | P17: 0.21 | Q17: =IF(O$5="Time-of-use", 0.42,0) -> 0 | R17: 45.0975
A18: 1200-1300 | B18: 10 | C18: 5 | D18: 100 | E18: 42.5 | F18: 100 | G18: 17 | H18: 100 | I18: 63.75 | J18: 100 | K18: 42.5 | L18: 100 | M18: 44 | N18: 214.75 | O18: 0.21 | P18: 0.21 | Q18: =IF(O$5="Time-of-use", 0.42,0) -> 0 | R18: 45.0975
A19: 1300-1400 | B19: 10 | C19: 5 | D19: 100 | E19: 42.5 | F19: 100 | G19: 17 | H19: 100 | I19: 63.75 | J19: 100 | K19: 42.5 | L19: 100 | M19: 44 | N19: 214.75 | O19: 0.21 | P19: 0.21 | Q19: 0 | R19: 45.0975
A20: 1400-1500 | B20: 10 | C20: 5 | D20: 100 | E20: 42.5 | F20: 100 | G20: 17 | H20: 100 | I20: 63.75 | J20: 100 | K20: 42.5 | L20: 100 | M20: 44 | N20: 214.75 | O20: 0.21 | P20: 0.21 | Q20: 0 | R20: 45.0975
A21: 1500-1600 | B21: 10 | C21: 5 | D21: 100 | E21: 42.5 | F21: 100 | G21: 17 | H21: 100 | I21: 63.75 | J21: 100 | K21: 42.5 | L21: 100 | M21: 44 | N21: 214.75 | O21: 0.21 | P21: 0.21 | Q21: 0 | R21: 45.0975
A22: 1600-1700 | B22: 20 | C22: 10 | D22: 100 | E22: 42.5 | F22: 100 | G22: 17 | H22: 100 | I22: 63.75 | J22: 100 | K22: 42.5 | L22: 100 | M22: 44 | N22: 219.75 | O22: 9.21 | P22: 9.21 | Q22: 0 | R22: 2023.8975
A23: 1700-1800 | B23: 30 | C23: 15 | D23: 100 | E23: 42.5 | F23: 0 | G23: 0 | H23: 40 | I23: 25.5 | J23: 30 | K23: 12.75 | L23: 100 | M23: 44 | N23: 139.75 | O23: 0.21 | P23: 0.21 | Q23: 0 | R23: 29.3475
A24: 1800-1900 | B24: 50 | C24: 25 | D24: 40 | E24: 17 | F24: 0 | G24: 0 | H24: 20 | I24: 12.75 | J24: 20 | K24: 8.5 | L24: 100 | M24: 44 | N24: 107.25 | O24: 0.21 | P24: 0.21 | Q24: 0 | R24: 22.5225
A25: 1900-2000 | B25: 100 | C25: 50 | D25: 20 | E25: 8.5 | F25: 0 | G25: 0 | H25: 0 | I25: 0 | J25: 0 | K25: 0 | L25: 100 | M25: 44 | N25: 102.5 | O25: 0.21 | P25: 0.21 | Q25: 0 | R25: 21.525
A26: 2000-2100 | B26: 100 | C26: 50 | D26: 10 | E26: 4.25 | F26: 0 | G26: 0 | H26: 0 | I26: 0 | J26: 0 | K26: 0 | L26: 0 | M26: 0 | N26: 54.25 | O26: 0.21 | P26: 0.21 | Q26: 0 | R26: 11.3925
A27: 2100-2200 | B27: 100 | C27: 50 | D27: 10 | E27: 4.25 | F27: 0 | G27: 0 | H27: 0 | I27: 0 | J27: 0 | K27: 0 | L27: 0 | M27: 0 | N27: 54.25 | O27: 0.21 | P27: 0.21 | Q27: 0 | R27: 11.3925
A28: 2200-2300 | B28: 75 | C28: 37.5 | D28: 10 | E28: 4.25 | F28: 0 | G28: 0 | H28: 0 | I28: 0 | J28: 0 | K28: 0 | L28: 0 | M28: 0 | N28: 41.75 | O28: 0.21 | P28: 0.21 | Q28: =IF(O$5="Time-of-use", 0.21,0) -> 0 | R28: 8.7675
A29: 2300-0000 | B29: 75 | C29: 37.5 | D29: 10 | E29: 4.25 | F29: 0 | G29: 0 | H29: 0 | I29: 0 | J29: 0 | K29: 0 | L29: 0 | M29: 0 | N29: 41.75 | O29: 0.21 | P29: 0.21 | Q29: 0 | R29: 8.7675
M30: Total kWh | N30: =SUM(N6:N29) -> 2944.975 | O30: Total Cost | R30: =SUM(R6:R29) -> 2596.19475

Sheet Demand_Curves (hidden)

Sheet Level_2 (hidden)
A12: Total Load | B12: =Level_1!B5+Level_1!D5+Level_1!F5+Level_1!H5+Level_1!J5+(Level_1!L5/0.85) -> 296.7647059 | C12: kVA
A13: Transformer Loading Percentage | B13: 75 | C13: %
B14: =B12/B13*100 -> 395.6862745 | C14: kVA
A15: Select the transformer | B15: 500 | C15: kVA

Sheet Transformer (hidden)
B3: Transformer A | C3: Transformer B
B4: Standard | C4: High Efficiency | E4: Discount Factor % | F4: 7.5
A5: Purchase price | B5: 10194 | C5: 10845 | E5: No of Years | F5: 15
A6: No-load losses | B6: 1647 | C6: 1100 | E6: Electricity costs /kWh | F6: 0.21
A7: Load losses at 100% | B7: 9507 | C7: 7100 | E7: Loaded hours per year | F7: 6000
A8: Load losses at selected value | B8: 5348 | C8: 3808
A9: PW | B9: =(((1+($F4/100))^$F5)-1)/(($F4/100)*((1+($F4/100))^$F5)) -> 8.827119745
A10: Present Value of No Load Losses | B10: =(B6*8760*$F6/1000)*$B9 -> 26744.59454 | C10: =(C6*8760*$F6/1000)*$B9 -> 17862.20643
A11: Present Value of Load Losses | B11: =(B8/1000)*$F7*$F6*$B9 -> 59481.36986 | C11: =(C8/1000)*$F7*$F6*$B9 -> 42353.22671
A12: Total Owning Cost (TOC) | B12: =B5+B10+B11 -> 96419.9644 | C12: =C5+C10+C11 -> 71060.43314
A14: Present Value of Savings | B14: =B12-C12 -> 25359.53126

Sheet Cables (hidden)
H2: Discount Factor % | I2: 7.5
H3: Electricity price | I3: 0.21
A4: Design current for the conductor | B4: =Level_2!B12/(1.7*415)*1000 -> 420.6445158 | H4: No of Years | I4: 10
A5: Length of the cable m | B5: 1000 | H5: No of hours loaded | I5: 3700
H6: Loading percentage | I6: 70
H7: PW | I7: =(((1+(I2*0.01))^I4)-1)/((I2*0.01)*((1+(I2*0.01))^I4)) -> 6.864080956
H8: F $/W | I8: =((0.01*I6)^2)*I5*I7*I3/1000 -> 2.613361542
B9: =IF(B30=MIN($B30:$E30),1,0) -> 1 | C9: =IF(C30=MIN($B30:$E30),1,0) -> 0 | D9: =IF(D30=MIN($B30:$E30),1,0) -> 0 | E9: =IF(E30=MIN($B30:$E30),1,0) -> 0
A10: Voltage Drop Anlysis | H10: Cable price per metre per sqmm | I10: 0.1
A11: Selected Cable sizes | B11: 300 | C11: 400 | D11: 500 | E11: 630
A12: Voltage Drop | B12: 0.185 | C12: 0.166 | D12: 0.15 | E12: 0.138
A13: Total voltage drop | B13: =(B$12*$B5*$B4)/1000 -> 77.81923542 | C13: =(C$12*$B5*$B4)/1000 -> 69.82698962 | D13: =(D$12*$B5*$B4)/1000 -> 63.09667737 | E13: =(E$12*$B5*$B4)/1000 -> 58.04894318 | H13: Optimal Cross Section A mm2 | I13: =B4*0.1433*(SQRT(I8/I10)) -> 308.1492886
A14: Total voltage drop should be less than 5% of feeder volatge
A15: voltage drop of the selected cable | B15: 0.166
A16: Maximum length of the cable / m | B16: =20000/(B15*B4) -> 286.4222002
A18: Short Circuit Analysis
A19: Short circuit current | B19: =(Level_2!B15*100000)/(415*4*1.7) -> 17717.93055
A20: Minimum cable size to withstand for Isc | B20: =(SQRT(B19*B19*5))/143 -> 277.0524274
A21: (Assuming XLPE cable)
A25: Cable Comparission
A26: Cross section of the conductor | B26: 300 | C26: 400 | D26: 500 | E26: 630
A27: Current | B27: =B4 -> 420.6445158
A28: Price of the cable /m | B28: =$I10*B26 -> 30 | C28: =$I10*C26 -> 40 | D28: =$I10*D26 -> 50 | E28: =$I10*E26 -> 63
A29: loss cost /m | B29: =(1/B26)*$B27*$B27*0.02054*$I8 -> 31.65987112 | C29: =(1/C26)*$B27*$B27*0.02054*$I8 -> 23.74490334 | D29: =(1/D26)*$B27*$B27*0.02054*$I8 -> 18.99592267 | E29: =(1/E26)*$B27*$B27*0.02054*$I8 -> 15.0761291
A30: Total | B30: =B28+B29 -> 61.65987112 | C30: =C28+C29 -> 63.74490334 | D30: =D28+D29 -> 68.99592267 | E30: =E28+E29 -> 78.0761291

Sheet Lighting_Design (hidden)
A2: Lighting Layout Calculator
A3: Area to be lit/ m2 | B3: 150
A4: Desired Lux level | B4: 265
A5: Average number of hours on per year | B5: 3000
B7: Luminar 1 | C7: Luminar 2
A8: Watts per fixture | B8: 18 | C8: 20
A9: Number of lamps per fixture | B9: 2 | C9: 2
A10: Rated mean lumen per lamp | B10: 500 | C10: 700
A11: Ballast factor (BF) | B11: 1 | C11: 1
A12: Coefficient of Utilization (CU) | B12: 0.6 | C12: 0.6
A14: Electric cost per kilowatt hour AUD | B14: 0.21
A16: No of fixtures required | B16: =($B3*$B4)/(B9*B10*B11*B12) -> 66.25 | C16: =($B3*$B4)/(C9*C10*C11*C12) -> 47.32142857
A17: Total power load kW | B17: =B16*B8/1000 -> 1.1925 | C17: =C16*C8/1000 -> 0.9464285714
A18: Energy cost per year | B18: =B17*$B5*$B14 -> 751.275 | C18: =C17*$B5*$B14 -> 596.25
A21: Cost (including disposal cost) | B21: 80 | C21: 60
A22: Life in hours | B22: 10000 | C22: 10000
A23: Cost of labor to replace lamp | B23: 10 | C23: 10
A25: Cost per year | B25: =B16*B8*$B5*$B14/1000 -> 751.275 | C25: =C16*C8*$B5*$B14/1000 -> 596.25

Sheet Lighting_Retrofit (hidden)
J1: Existing lux | L1: lux
A2: Area/ m2 | B2: 150 | J2: =(K2*$C$10*$C$11*$C$12*$C$13)/$B$2 -> 28 | K2: 5 | L2: =(K2*$B$10*$B$11*$B$12*$B$13)/$B$2 -> 20
A3: Average number of hours on per year | B3: 3000 | J3: =(K3*$C$10*$C$11*$C$12*$C$13)/$B$2 -> 56 | K3: 10 | L3: =(K3*$B$10*$B$11*$B$12*$B$13)/$B$2 -> 40
J4: 84 | K4: 15 | L4: 60
A5: Compare Life Cycle Cost | J5: 112 | K5: 20 | L5: 80
J6: 140 | K6: 25 | L6: 100
B7: Luminar 1(New) | C7: Luminar 2(Existing) | J7: 168 | K7: 30 | L7: 120
A8: No of Fixtures | B8: 47 | J8: 196 | K8: 35 | L8: 140
A9: Watts per fixture | B9: 18 | C9: 20 | J9: 224 | K9: 40 | L9: 160
A10: Number of lamps per fixture | B10: 2 | C10: 2 | J10: 252 | K10: 45 | L10: 180
A11: Rated mean lumen per lamp | B11: 500 | C11: 700 | J11: 280 | K11: 50 | L11: 200
A12: Ballast factor (BF) | B12: 1 | C12: 1 | J12: 308 | K12: 55 | L12: 220
A13: Coefficient of Utilization (CU) | B13: 0.6 | C13: 0.6 | J13: 336 | K13: 60 | L13: 240
A14: Operating Cost Per Year | B14: =(B9*Lighting_Design!$B5*Lighting_Design!$B14*$B8)/1000 -> 532.98 | C14: =(C9*Lighting_Design!$B5*Lighting_Design!$B14*$B8)/1000 -> 592.2 | J14: 364 | K14: 65 | L14: 260
J15: 392 | K15: 70 | L15: 280
A16: Existing Lux Level with existing luminar | B16: =(B8*C10*C11*C12*C13)/B2 -> 263.2 | J16: 420 | K16: 75 | L16: 300
A17: Achieved Lux Level with new Luminar | B17: =(B8*B10*B11*B12*B13)/B2 -> 188 | J17: 448 | K17: 80 | L17: 320
J18: 476 | K18: 85 | L18: 340
J19: 504 | K19: 90 | L19: 360
J20: 532 | K20: 95 | L20: 380
J21: 560 | K21: 100 | L21: 400

Sheet Motor (hidden)
B2: Motor A | C2: Motor B | E2: Interest rate | F2: 10 | K2: E | L2: MOC | N2: Year | O2: PW | P2: MOC A | Q2: MOC B | R2: savings
A3: Motor size kW | B3: 1.5 | C3: 1.5 | E3: Electricity cost $/kWh | F3: 0.21 | K3: 50 | L3: =(B$4*B$3*74.6*F$3)/(K3) -> 1174.95 | N3: 1 | O3: =(((1+(0.01*$F$2))^N3) -1)/(($F$2*0.01)*((1+(0.01*$F$2))^N3)) -> 0.9090909091 | P3: =($B$7*O3)+B6 -> 1968.521031 | Q3: =($C$7*O3)+C6 -> 1929.752066 | R3: =(P3-Q3)*O3 -> 35.24451372 | S3: =R3 -> 35.24451372
A4: Motor operating hours in a year | B4: 2500 | C4: 2500 | E4: No of Years | F4: 8 | K4: 51 | L4: =(B$4*B$3*74.6*F$3)/(K4) -> 1151.911765 | N4: 2 | O4: =(((1+(0.01*$F$2))^N4) -1)/(($F$2*0.01)*((1+(0.01*$F$2))^N4)) -> 1.73553719 | P4: =($B$7*O4)-($B$7*O3) -> 971.3827556 | Q4: =($C$7*O4)-($C$7*O3) -> 845.229151 | R4: =P4-Q4 -> 126.1536046 | S4: =S3+R4 -> 161.3981183
A5: Motor efficiency | B5: 67 | C5: 77 | K5: 52 | L5: =(B$4*B$3*74.6*F$3)/(K5) -> 1129.759615 | N5: 3 | O5: =(((1+(0.01*$F$2))^N5) -1)/(($F$2*0.01)*((1+(0.01*$F$2))^N5)) -> 2.486851991 | P5: =($B$7*O5)-($B$7*O4) -> 883.0752324 | Q5: =($C$7*O5)-($C$7*O4) -> 768.3901373 | R5: 114.6850951 | S5: =S4+R5 -> 276.0832135
A6: Acquisition cost | B6: 900 | C6: 1000 | K6: 53 | L6: 1108.443396 | N6: 4 | O6: 3.169865446 | P6: =($B$7*O6)-($B$7*O5) -> 802.7956658 | Q6: 698.5364884 | R6: 104.2591774 | S6: =S5+R6 -> 380.3423908
A7: Operating Cost in a year | B7: =(B4*B3*$F3)/(B5*0.01) -> 1175.373134 | C7: =(C4*C3*$F3)/(C5*0.01) -> 1022.727273 | K7: 54 | L7: 1087.916667 | N7: 5 | O7: 3.790786769 | P7: 729.8142417 | Q7: 635.0331713 | R7: 94.78107034 | S7: 475.1234612
K8: 55 | L8: 1068.136364 | N8: 6 | O8: 4.355260699 | P8: 663.4674924 | Q8: 577.302883 | R8: 86.1646094 | S8: 561.2880706
A9: Simple Payback Period | B9: =(C6-B6)/(B7-C7) -> 0.6551111111 | K9: 56 | L9: 1049.0625 | N9: 7 | O9: 4.868418818 | P9: 603.1522658 | Q9: 524.8208027 | R9: 78.33146309 | S9: 639.6195337
A10: PW | B10: =(((1+(0.01*F2))^F4) -1)/((F2*0.01)*((1+(0.01*F2))^F4)) -> 5.334926198 | K10: 57 | L10: 1030.657895 | N10: 8 | O10: 5.334926198 | P10: 548.3202417 | Q10: 477.1098207 | R10: 71.210421 | S10: 710.8299547
A11: Present Value of Operational Costs | B11: =B7*$B10 -> 6270.528927 | C11: =C7*$B10 -> 5456.174521 | K11: 58 | L11: 1012.887931 | N11: 9 | O11: 5.759023816 | P11: 498.472947 | Q11: 433.7362006 | R11: 64.73674636 | S11: 775.566701
K12: 59 | L12: 995.720339 | N12: 10 | O12: 6.144567106 | P12: 453.1572245 | Q12: 394.3056369 | R12: 58.8515876 | S12: 834.4182886
A13: Total Owning Cost | B13: =B11+B6 -> 7170.528927 | C13: =C11+C6 -> 6456.174521 | K13: 60 | L13: 979.125 | N13: 11 | O13: 6.495061005 | P13: 411.9611132 | Q13: 358.4596699 | R13: 53.50144327 | S13: 887.9197319
A14: Present Value of Savings | B14: =B13-C13 -> 714.3544061 | K14: 61 | L14: 963.0737705 | N14: 12 | O14: 6.813691823 | P14: 374.5101029 | Q14: 325.8724272 | R14: 48.6376757 | S14: 936.5574076
K15: 62 | L15: 947.5403226 | N15: 13 | O15: 7.103356203 | P15: 340.4637299 | Q15: 296.2476611 | R15: 44.21606882 | S15: 980.7734764
K16: 63 | L16: 932.5 | N16: 14 | O16: 7.366687457 | P16: 309.5124817 | Q16: 269.3160555 | R16: 40.1964262 | S16: 1020.969903
K17: 64 | L17: 917.9296875 | N17: 15 | O17: 7.606079506 | P17: 281.3749834 | Q17: 244.8327778 | R17: 36.54220564 | S17: 1057.512108
K18: 65 | L18: 903.8076923 | N18: 16 | O18: 7.823708642 | P18: 255.7954395 | Q18: 222.5752525 | R18: 33.22018694 | S18: 1090.732295
K19: 66 | L19: 890.1136364 | N19: 17 | O19: 8.021553311 | P19: 232.5413086 | Q19: 202.3411386 | R19: 30.20016995 | S19: 1120.932465
K20: 67 | L20: 876.8283582 | N20: 18 | O20: 8.201412101 | P20: 211.4011896 | Q20: 183.9464897 | R20: 27.45469995 | S20: 1148.387165
K21: 68 | L21: 863.9338235 | N21: 19 | O21: 8.364920092 | P21: 192.1828997 | Q21: 167.2240815 | R21: 24.95881814 | S21: 1173.345983
K22: 69 | L22: 851.4130435 | N22: 20 | O22: 8.51356372 | P22: 174.711727 | Q22: 152.0218923 | R22: 22.68983467 | S22: 1196.035818
K23: 70 | L23: 839.25
K24: 71 | L24: 827.4295775
K25: 72 | L25: 815.9375
K26: 73 | L26: 804.760274
K27: 74 | L27: 793.8851351
K28: 75 | L28: 783.3
K29: 76 | L29: 772.9934211
K30: 77 | L30: 762.9545455
K31: 78 | L31: 753.1730769
K32: 79 | L32: 743.6392405
K33: 80 | L33: 734.34375
K34: 81 | L34: 725.2777778
K35: 82 | L35: 716.4329268
K36: 83 | L36: 707.8012048
K37: 84 | L37: 699.375
K38: 85 | L38: 691.1470588
K39: 86 | L39: 683.1104651
K40: 87 | L40: 675.2586207
K41: 88 | L41: 667.5852273
K42: 89 | L42: 660.0842697
K43: 90 | L43: 652.75
K44: 91 | L44: 645.5769231
K45: 92 | L45: 638.5597826
K46: 93 | L46: 631.6935484
K47: 94 | L47: 624.9734043
K48: 95 | L48: 618.3947368
K49: 96 | L49: 611.953125
K50: 97 | L50: 605.6443299
K51: 98 | L51: 599.4642857
K52: 99 | L52: 593.4090909
K53: 100 | L53: 587.475

Sheet Level_3 (hidden)
A2: Existing System(Valve controlled) | H2: Electricity cost | I2: 0.21
A4: Motor size kW | B4: 15.1 | C4: =B4*(B5*0.01) -> 13.892
A5: Motor Efficiency % | B5: 92 | M5: flow | N5: vsd
A6: Flow rate @ 100% m3/h | B6: 125 | M6: 0 | N6: =$C$4*((M6*0.01)^3) -> 0 | O6: =$C$4 -> 13.892
A7: Head / m | B7: 32 | M7: 1 | N7: =$C$4*((M7*0.01)^3) -> 1.3892e-05 | O7: =$C$4 -> 13.892
B8: Flow rate demands | M8: 2 | N8: 0.000111136 | O8: 13.892
A9: No of hours per day | B9: 14.4 | C9: 9.6 | M9: 3 | N9: 0.000375084 | O9: 13.892
A10: Flow rate % | B10: 75 | C10: 100 | F10: to see how total head changes | M10: 4 | N10: 0.000889088 | O10: 13.892
A11: VSD controlled system kW | B11: =$C4*((B$10*0.01)^3) -> 5.8606875 | C11: =$C4*((C$10*0.01)^3) -> 13.892 | M11: 5 | N11: 0.0017365 | O11: 13.892
M12: 6 | N12: 0.003000672 | O12: 13.892
A13: Electricity cost per day for existing system | B13: =C4*(B9+C9)*I2 -> 70.01568 | M13: 7 | N13: 0.004764956 | O13: 13.892
M14: 8 | N14: 0.007112704 | O14: 13.892
A15: Electricity cost per day for VSD system | B15: =((B11*B9)+(C11*C9))*I2 -> 45.728991 | M15: 9 | N15: 0.010127268 | O15: 13.892
M16: 10 | N16: 0.013892 | O16: 13.892
M17: 11 | N17: 0.018490252 | O17: 13.892
M18: 12 | N18: 0.024005376 | O18: 13.892
M19: 13 | N19: 0.030520724 | O19: 13.892
M20: 14 | N20: 0.038119648 | O20: 13.892
M21: 15 | N21: 0.0468855 | O21: 13.892
M22: 16 | N22: 0.056901632 | O22: 13.892
M23: 17 | N23: 0.068251396 | O23: 13.892
M24: 18 | N24: 0.081018144 | O24: 13.892
M25: 19 | N25: 0.095285228 | O25: 13.892
M26: 20 | N26: 0.111136 | O26: 13.892
M27: 21 | N27: 0.128653812 | O27: 13.892
M28: 22 | N28: 0.147922016 | O28: 13.892
M29: 23 | N29: 0.169023964 | O29: 13.892
M30: 24 | N30: 0.192043008 | O30: 13.892
M31: 25 | N31: 0.2170625 | O31: 13.892
M32: 26 | N32: 0.244165792 | O32: 13.892
M33: 27 | N33: 0.273436236 | O33: 13.892
M34: 28 | N34: 0.304957184 | O34: 13.892
M35: 29 | N35: 0.338811988 | O35: 13.892
M36: 30 | N36: 0.375084 | O36: 13.892
M37: 31 | N37: 0.413856572 | O37: 13.892
M38: 32 | N38: 0.455213056 | O38: 13.892
M39: 33 | N39: 0.499236804 | O39: 13.892
M40: 34 | N40: 0.546011168 | O40: 13.892
M41: 35 | N41: 0.5956195 | O41: 13.892
M42: 36 | N42: 0.648145152 | O42: 13.892
M43: 37 | N43: 0.703671476 | O43: 13.892
M44: 38 | N44: 0.762281824 | O44: 13.892
M45: 39 | N45: 0.824059548 | O45: 13.892
M46: 40 | N46: 0.889088 | O46: 13.892
M47: 41 | N47: 0.957450532 | O47: 13.892
M48: 42 | N48: 1.029230496 | O48: 13.892
M49: 43 | N49: 1.104511244 | O49: 13.892
M50: 44 | N50: 1.183376128 | O50: 13.892
M51: 45 | N51: 1.2659085 | O51: 13.892
M52: 46 | N52: 1.352191712 | O52: 13.892
M53: 47 | N53: 1.442309116 | O53: 13.892
M54: 48 | N54: 1.536344064 | O54: 13.892
M55: 49 | N55: 1.634379908 | O55: 13.892
M56: 50 | N56: 1.7365 | O56: 13.892
M57: 51 | N57: 1.842787692 | O57: 13.892
M58: 52 | N58: 1.953326336 | O58: 13.892
M59: 53 | N59: 2.068199284 | O59: 13.892
M60: 54 | N60: 2.187489888 | O60: 13.892
M61: 55 | N61: 2.3112815 | O61: 13.892
M62: 56 | N62: 2.439657472 | O62: 13.892
M63: 57 | N63: 2.572701156 | O63: 13.892
M64: 58 | N64: 2.710495904 | O64: 13.892
M65: 59 | N65: 2.853125068 | O65: 13.892
M66: 60 | N66: 3.000672 | O66: 13.892
M67: 61 | N67: 3.153220052 | O67: 13.892
M68: 62 | N68: 3.310852576 | O68: 13.892
M69: 63 | N69: 3.473652924 | O69: 13.892
M70: 64 | N70: 3.641704448 | O70: 13.892
M71: 65 | N71: =$C$4*((M71*0.01)^3) -> 3.8150905 | O71: =$C$4 -> 13.892
M72: 66 | N72: 3.993894432 | O72: 13.892
M73: 67 | N73: 4.178199596 | O73: 13.892
M74: 68 | N74: 4.368089344 | O74: 13.892
M75: 69 | N75: 4.563647028 | O75: 13.892
M76: 70 | N76: 4.764956 | O76: 13.892
M77: 71 | N77: 4.972099612 | O77: 13.892
M78: 72 | N78: 5.185161216 | O78: 13.892
M79: 73 | N79: 5.404224164 | O79: 13.892
M80: 74 | N80: 5.629371808 | O80: 13.892
M81: 75 | N81: 5.8606875 | O81: 13.892
M82: 76 | N82: 6.098254592 | O82: 13.892
M83: 77 | N83: 6.342156436 | O83: 13.892
M84: 78 | N84: 6.592476384 | O84: 13.892
M85: 79 | N85: 6.849297788 | O85: 13.892
M86: 80 | N86: 7.112704 | O86: 13.892
M87: 81 | N87: 7.382778372 | O87: 13.892
M88: 82 | N88: 7.659604256 | O88: 13.892
M89: 83 | N89: 7.943265004 | O89: 13.892
M90: 84 | N90: 8.233843968 | O90: 13.892
M91: 85 | N91: 8.5314245 | O91: 13.892
M92: 86 | N92: 8.836089952 | O92: 13.892
M93: 87 | N93: 9.147923676 | O93: 13.892
M94: 88 | N94: 9.467009024 | O94: 13.892
M95: 89 | N95: 9.793429348 | O95: 13.892
M96: 90 | N96: 10.127268 | O96: 13.892
M97: 91 | N97: 10.46860833 | O97: 13.892
M98: 92 | N98: 10.8175337 | O98: 13.892
M99: 93 | N99: 11.17412744 | O99: 13.892
M100: 94 | N100: 11.53847293 | O100: 13.892
M101: 95 | N101: 11.9106535 | O101: 13.892
M102: 96 | N102: 12.29075251 | O102: 13.892
M103: 97 | N103: 12.67885332 | O103: 13.892
M104: 98 | N104: 13.07503926 | O104: 13.892
M105: 99 | N105: 13.47939371 | O105: 13.892
M106: 100 | N106: 13.892 | O106: 13.892

Sheet VSD_curves (hidden)
H1: sys | I1: h2 | J1: q | K1: h | L1: q/qd | M1: h/hd
H2: =$K$7*((J2/$J$7)^2) -> 0 | I2: =K2*((Level_3!$B$10*0.01)^2) -> 20 | J2: =($J$7/$L$7)*L2 -> 0 | K2: =N2*($K$7/$N$7) -> 35.55555556 | L2: 0 | M2: 100 | N2: 100
H3: 0.32 | I3: =K3*((Level_3!$B$10*0.01)^2) -> 19.98 | J3: 12.5 | K3: 35.52 | L3: 10 | M3: =100-(((L3)^0.5)^(4/3)) -> 95.35841117 | N3: =100-((L3^2)*0.001) -> 99.9
H4: 1.28 | I4: =K4*((Level_3!$B$10*0.01)^2) -> 19.92 | J4: 25 | K4: 35.41333333 | L4: 20 | M4: =100-(((L4)^0.5)^(4/3)) -> 92.631937 | N4: =100-((L4^2)*0.001) -> 99.6
H5: 11.52 | I5: =K5*((Level_3!$B$10*0.01)^2) -> 19.28 | J5: 75 | K5: 34.27555556 | L5: 60 | M5: =100-(((L5)^0.5)^(4/3)) -> 84.67381135 | N5: 96.4
H6: 20.48 | I6: =K6*((Level_3!$B$10*0.01)^2) -> 18.72 | J6: =($J$7/$L$7)*L6 -> 100 | K6: =N6*($K$7/$N$7) -> 33.28 | L6: 80 | M6: 81.43364467 | N6: 93.6
H7: =$K$7*((J7/$J$7)^2) -> 32 | I7: =K7*((Level_3!$B$10*0.01)^2) -> 18 | J7: =Level_3!B6 -> 125 | K7: =Level_3!B7 -> 32 | L7: 100 | M7: 78.4556531 | N7: 90
H8: =$K$7*((J8/$J$7)^2) -> 46.08 | I8: =K8*((Level_3!$B$10*0.01)^2) -> 17.12 | J8: =($J$7/$L$7)*L8 -> 150 | K8: =N8*($K$7/$N$7) -> 30.43555556 | L8: 120 | M8: 75.67119202 | N8: 85.6
H9: 62.72 | I9: =K9*((Level_3!$B$10*0.01)^2) -> 16.08 | J9: =($J$7/$L$7)*L9 -> 175 | K9: =N9*($K$7/$N$7) -> 28.58666667 | L9: 140 | M9: 73.038005 | N9: 80.4
H10: 81.92 | I10: =K10*((Level_3!$B$10*0.01)^2) -> 14.88 | J10: 200 | K10: 26.45333333 | L10: 160 | M10: 70.52774801 | N10: 74.4
H11: 103.68 | I11: =K11*((Level_3!$B$10*0.01)^2) -> 13.52 | J11: 225 | K11: 24.03555556 | L11: 180 | M11: 68.12024292 | N11: 67.6
H12: 128 | I12: =K12*((Level_3!$B$10*0.01)^2) -> 12 | J12: 250 | K12: 21.33333333 | L12: 200 | M12: 65.80048107 | N12: 60
H13: 154.88 | I13: =K13*((Level_3!$B$10*0.01)^2) -> 10.32 | J13: 275 | K13: 18.34666667 | L13: 220 | M13: 63.55691613 | N13: 51.6
